fUST/lending_fUST_20260202
["ID","MTS","AMOUNT","RATE_DAILY","PERIOD"]
[404257739,1770010246929,-157.0,0.00077,120]
[404257741,1770010246938,-231.0,0.00077065,120]
[404257743,1770010246946,-258.0,0.00079065,120]
[404257745,1770010246955,-153.0,0.0008,120]
[404257747,1770010246965,-681.66120942,0.0008,50]
[404257749,1770010246974,-2000.0,0.0008,120]
[404257751,1770010246983,-1162.29,0.00081281,120]
[404257752,1770010246992,-500.0,0.00081281,120]
[404257754,1770010247001,-2119.2904483,0.0008188,120]
[404257756,1770010247010,-11504.53874782,0.000835,120]
[404257758,1770010247021,-150.03949762,0.00084577,2]
[404257760,1770010247035,-177.691,0.00086602,120]
[404257762,1770010247044,-300.0,0.0008671,120]
[404257764,1770010247053,-1162.29,0.000895,120]
[404257766,1770010247062,-500.0,0.000895,120]
[404257768,1770010247071,-793.77,0.00089836,120]
[404257770,1770010247080,-9814.57519713,0.00089848,11]
[404257772,1770010247089,-500.0,0.00089857,120]
[404257774,1770010247098,-500.0,0.00089857,120]
[404257776,1770010247107,-500.0,0.00089857,120]
[404257778,1770010247116,-180.0,0.00089857,120]
[404257780,1770010247125,-15477.52,0.00089858,120]
[404257782,1770010247134,-948.78,0.00089858,120]
[404257784,1770010247142,-500.09146679,0.00089858,120]
[404257786,1770010247151,-500.0,0.00089858,120]
[404257788,1770010247160,-500.0,0.00089858,120]
[404257789,1770010247169,-524.84027864,0.00089869,120]
[404257791,1770010247178,-500.0,0.00089869,120]
[404257793,1770010247187,-151.0,0.0008987,120]
[404257795,1770010247196,-151.0,0.0008987,120]
[404257797,1770010247205,-200.644546,0.0008987,120]
[404257799,1770010247214,-151.0,0.0008987,120]
[404257801,1770010247222,-1103.18662019,0.0009,120]
[404257803,1770010247231,-6152.31294782,0.0009488,60]
[404257805,1770010247240,-575.108146,0.0009488,120]
[404257807,1770010247249,-575.108146,0.0009488,120]
[404257809,1770010247258,-575.108146,0.0009488,120]
[404257811,1770010247267,-575.108146,0.0009488,120]
[404257813,1770010247278,-2140.2545207,0.00095,120]
[404257815,1770010247287,-300.0,0.00095311,120]
[404257817,1770010247296,-1157.7662346,0.0009687,15]
[404257819,1770010247305,-6069.21271911,0.000975,30]
[404257820,1770010247315,-1162.29,0.00097719,120]
[404257822,1770010247324,-500.0,0.00097719,120]
[404257824,1770010247333,-1061.0,0.00098,120]
[404257826,1770010247342,-9814.57519713,0.00098068,13]
[404257828,1770010247351,-500.0,0.00098076,120]
[404257830,1770010247360,-500.0,0.00098076,120]
[404257832,1770010247370,-500.0,0.00098076,120]
[404257834,1770010247379,-150.10239056,0.00098076,120]
[404257836,1770010247389,-15477.52,0.00098078,120]
[404257838,1770010247398,-948.78,0.00098078,120]
[404257840,1770010247407,-500.0,0.00098078,120]
[404257842,1770010247416,-262.39984934,0.00098078,120]
[404257843,1770010247426,-500.0,0.00098088,120]
[404257845,1770010247435,-2792.01,0.000981,30]
[404257847,1770010247446,-177.691,0.00098301,120]
[404257849,1770010247456,-500.0,0.0009863,120]
[404257851,1770010247465,-151.0,0.00099,120]
[404257853,1770010247475,-264.95,0.00099204,120]
[404257855,1770010247484,-150.0,0.00099451,120]
[404257857,1770010247494,-150.0,0.00099451,120]
[404257859,1770010247503,-150.0,0.00099451,87]
[404257861,1770010247512,-155.25227098,0.00099451,120]
[404257863,1770010247523,-151.09720304,0.00099451,120]
[404257865,1770010247539,-150.0,0.00099451,120]
[404257867,1770010247550,-150.0,0.00099451,120]
[404257869,1770010247559,-500.0,0.00099451,120]
[404257871,1770010247568,-206.70010126,0.00099451,120]
[404257873,1770010247579,-500.0,0.00099451,120]
[404257874,1770010247588,-500.0,0.00099451,120]
[404257876,1770010247597,-500.0,0.00099451,120]
[404257878,1770010247606,-422.75,0.000995,60]
[404257880,1770010247615,-4807.2986068,0.001,120]
[404257889,1770010247695,-543.33499682,0.001,120]
[404257891,1770010247705,-150.0,0.00100075,120]
[404257893,1770010247715,-151.54954348,0.00100075,120]
[404257895,1770010247724,-150.0,0.00100075,120]
[404257897,1770010247733,-202.58443914,0.00100075,120]
[404257899,1770010247742,-990.0,0.00100156,120]
[404257901,1770010247751,-150.03949762,0.00100349,2]
[404257903,1770010247760,-500.0,0.00103636,120]
[404257905,1770010247769,-1162.29,0.00105939,120]
[404257907,1770010247781,-593.24,0.00105939,120]
[404257910,1770010247803,-9814.57519713,0.00106287,16]
[404257912,1770010247813,-575.108146,0.00106287,120]
[404257914,1770010247823,-575.108146,0.00106287,120]
[404257916,1770010247834,-575.108146,0.00106287,120]
[404257918,1770010247844,-575.108151,0.00106287,120]
[404257920,1770010247854,-500.0,0.00106296,120]
[404257922,1770010247864,-500.0,0.00106296,120]
[404257924,1770010247874,-500.0,0.00106296,120]
[404257926,1770010247883,-15477.52,0.00106297,120]
[404257928,1770010247893,-948.78,0.00106297,120]
[404257930,1770010247903,-500.0,0.00106297,120]
[404257932,1770010247913,-500.0,0.00106307,120]
[404257934,1770010247923,-177.691,0.0011,120]
[404257936,1770010247932,-500.0,0.00111855,120]
[404257938,1770010247942,-300.0,0.00114,120]
[404257940,1770010247951,-1162.29,0.00114158,120]
[404257942,1770010247960,-500.0,0.00114515,120]
[404257944,1770010247970,-500.0,0.00114515,120]
[404257946,1770010247979,-500.0,0.00114515,120]
[404257948,1770010247988,-15477.52,0.00114516,120]
[404257950,1770010247998,-948.78,0.00114516,120]
[404257952,1770010248008,-500.0,0.00114516,120]
[404257954,1770010248018,-236.34297213,0.00114526,120]
[404257956,1770010248031,-150.03949762,0.00116121,2]
[404257958,1770010248041,-500.0,0.00120075,120]
[404257960,1770010248051,-237.031043,0.0012119,120]
[404257962,1770010248061,-1162.29,0.00122377,120]
[404257964,1770010248071,-9814.57519713,0.00122725,21]
[404257966,1770010248080,-500.0,0.00122734,120]
[404257968,1770010248089,-500.0,0.00122734,120]
[404257970,1770010248099,-500.0,0.00122734,120]
[404257972,1770010248108,-15477.52,0.00122735,120]
[404257973,1770010248118,-202.915544,0.00122735,120]
[404257974,1770010248127,-948.78,0.00122735,120]
[404257975,1770010248137,-500.0,0.00122735,120]
[404257976,1770010248146,-500.0,0.00128294,120]
[404257977,1770010248155,-1800.0,0.0013,120]
[404257978,1770010248165,-1000.0,0.0013,120]
[404257979,1770010248175,-1162.29,0.00130596,120]
[404257980,1770010248184,-500.0,0.00130953,120]
[404257981,1770010248194,-500.0,0.00130953,120]
[404257982,1770010248203,-500.0,0.00130953,120]
[404257983,1770010248213,-15477.52,0.00130954,120]
[404257984,1770010248222,-948.78,0.00130954,120]
[404257985,1770010248232,-500.0,0.00130954,120]
[404257986,1770010248242,-150.03949762,0.00131892,2]
[404257987,1770010248251,-500.0,0.00136513,120]
[404257988,1770010248260,-9814.57519713,0.00136964,26]
[404257989,1770010248270,-562.61,0.00136964,120]
[404257990,1770010248281,-562.61,0.00136964,120]
[404257991,1770010248291,-562.61,0.00136964,120]
[404257992,1770010248300,-562.61,0.00136964,120]
[404257993,1770010248310,-562.61,0.00136964,120]
[404257994,1770010248320,-562.61,0.00136964,120]
[404257995,1770010248330,-562.61,0.00136964,120]
[404257996,1770010248339,-562.61,0.00136964,120]
[404257997,1770010248349,-562.61,0.00136964,120]
[404257998,1770010248359,-562.61,0.00136964,120]
[404257999,1770010248369,-562.61,0.00136964,120]
[404258000,1770010248379,-562.61,0.00136964,120]
[404258001,1770010248388,-562.61,0.00136964,120]
[404258003,1770010248397,-562.61,0.00136964,120]
[404258004,1770010248407,-562.61,0.00136964,120]
[404258006,1770010248417,-562.61,0.00136964,120]
[404258007,1770010248427,-562.61,0.00136964,120]
[404258008,1770010248436,-562.61,0.00136964,120]
[404258009,1770010248446,-562.61,0.00136964,120]
[404258010,1770010248456,-562.61,0.00136964,120]
[404258011,1770010248465,-562.61,0.00136964,120]
[404258012,1770010248475,-562.61,0.00136964,120]
[404258013,1770010248485,-562.61,0.00136964,120]
[404258014,1770010248495,-562.61,0.00136964,120]
[404258015,1770010248504,-562.61,0.00136964,120]
[404258016,1770010248514,-562.61,0.00136964,120]
[404258017,1770010248523,-562.61,0.00136964,120]
[404258018,1770010248535,-562.61,0.00136964,120]
[404258019,1770010248545,-562.61,0.00136964,120]
[404258020,1770010248559,-562.61,0.00136964,120]
[404258021,1770010248568,-562.61,0.00136964,120]
[404258023,1770010248577,-562.61,0.00136964,120]
[404258024,1770010248587,-562.61,0.00136964,120]
[404258025,1770010248596,-562.61,0.00136964,120]
[404258026,1770010248606,-562.61,0.00136964,120]
[404258027,1770010248615,-779.2,0.00136964,120]
[404258028,1770010248624,-151.0,0.00136984,120]
[404258029,1770010248634,-179.63553797,0.00136984,120]
[404258030,1770010248643,-300.0,0.00136985,2]
[404258031,1770010248653,-400.010483,0.00136986,120]
[404258032,1770010248662,-2792.01,0.00137,30]
[404258033,1770010248671,-899.95,0.00137,120]
[404258034,1770010248681,-1162.29,0.00138815,120]
[404258035,1770010248690,-500.0,0.00139172,120]
[404258036,1770010248699,-500.0,0.00139172,120]
[404258037,1770010248708,-500.0,0.00139172,120]
[404258038,1770010248718,-15477.52,0.00139173,120]
[404258039,1770010248727,-948.78,0.00139173,120]
[404258040,1770010248738,-500.0,0.00139173,120]
[404258042,1770010248747,-699.999999,0.0014259,120]
[404258044,1770010248756,-400.010483,0.00144196,120]
[404258046,1770010248765,-500.0,0.00144732,120]
[404258048,1770010248774,-248.33847889,0.00145203,120]
[404258049,1770010248785,-300.0,0.00145204,2]
[404258051,1770010248794,-1162.29,0.00147035,120]
[404258053,1770010248804,-9814.57519713,0.00147383,29]
[404258054,1770010248814,-500.0,0.00147392,120]
[404258055,1770010248823,-500.0,0.00147392,120]
[404258056,1770010248832,-500.0,0.00147392,120]
[404258057,1770010248842,-15477.52,0.00147393,120]
[404258059,1770010248851,-948.78,0.00147393,120]
[404258061,1770010248860,-500.0,0.00147393,120]
[404258063,1770010248869,-150.03949762,0.00147664,2]
[404258065,1770010248878,-177.392379,0.00149288,120]
[404258066,1770010248886,-177.392379,0.00149288,120]
[404258068,1770010248895,-13940.22430737,0.0015,120]
[404258072,1770010248928,-3303.64348382,0.0015,120]
[404258090,1770010350232,249.94305942,0.0003825,120]
[404258091,1770010350291,303.269643,0.0003825,120]
[404258092,1770010350654,303.269643,0.0003825,120]
[404258093,1770010351011,303.269643,0.0003825,120]
[404258094,1770010388046,500.0,0.00013273,2]
[404258095,1770010391055,501.7636643,0.00013273,2]
[404258096,1770010393806,501.78355213,0.00013273,2]
[404258097,1770010397362,500.0,0.00013273,2]
[404258098,1770010397506,500.0,0.00013699,2]
[404258099,1770010399363,500.97302418,0.00013273,2]
[404258100,1770010448514,504.16252433,0.00013273,2]
[404258101,1770010450247,500.0,0.00013273,2]
[404258102,1770010451961,503.02470899,0.00013273,2]
[404258103,1770010452393,502.92395427,0.00013273,2]
[404258104,1770010452760,186.04355821,0.00013273,2]
[404258105,1770010453426,501.88940514,0.00013273,2]
[404258106,1770010453461,5000.0,0.00024,2]
[404258107,1770010455327,500.60693725,0.00013273,2]
[404258108,1770010456098,500.0,0.00013273,2]
[404258109,1770010456709,500.0,0.00013273,2]
[404258110,1770010457016,605.94893696,0.00013273,2]
[404258111,1770010457064,500.6551881,0.00013273,2]
[404258112,1770010458443,500.81607162,0.00013273,2]
[404258113,1770010503935,502.70601719,0.00013273,2]
[404258114,1770010505376,500.0,0.00013273,2]
[404258115,1770010509735,500.0,0.00013273,2]
[404258116,1770010509792,1000.0,0.00013821,2]
[404258117,1770010510260,500.85558151,0.00013699,2]
[404258118,1770010510310,521.75689976,0.00013273,2]
[404258119,1770010510870,500.68291711,0.00013699,2]
[404258120,1770010512474,500.79097954,0.00013699,2]
[404258121,1770010513571,500.44005273,0.00013699,2]
[404258122,1770010514009,496.98252351,0.00013273,2]
[404258123,1770010517569,505.05141793,0.00013273,2]
[404258124,1770010518001,500.0,0.00013273,2]
[404258125,1770010518029,502.22385389,0.00013273,2]
[404258126,1770010518143,500.0,0.00013699,2]
[404258127,1770010518172,500.32107765,0.00013699,2]
[404258128,1770010518401,500.0,0.00013273,2]
[404258129,1770010518452,1000.0,0.00013821,2]
[404258130,1770010519684,302.88397848,0.00013673,2]
[404258131,1770010520309,506.79422489,0.00013273,2]
[404258144,1770010563186,500.0,0.00013273,2]
[404258145,1770010563258,347.91895033,0.00013821,2]
[404258146,1770010563290,156.49112229,0.00013821,2]
[404258147,1770010563336,559.33129122,0.00013273,2]
[404258148,1770010564690,500.0,0.00013273,2]
[404258149,1770010564739,500.98138709,0.00013699,2]
[404258150,1770010564776,1000.0,0.00013821,2]
[404258151,1770010567643,500.59812884,0.00013699,2]
[404258152,1770010568115,500.0,0.00013273,2]
[404258153,1770010568431,1000.0,0.00013821,2]
[404258154,1770010569250,299.98313854,0.00013699,2]
[404258155,1770010570268,500.58650475,0.00013699,2]
[404258156,1770010571734,500.67172008,0.00013699,2]
[404258157,1770010571918,501.07050799,0.00013699,2]
[404258158,1770010571994,500.77488183,0.00013699,2]
[404258159,1770010572472,501.01525798,0.00013699,2]
[404258160,1770010572681,500.0,0.00013273,2]
[404258161,1770010572732,256.03495613,0.00013821,2]
[404258162,1770010573429,500.0,0.00013273,2]
[404258163,1770010573610,552.84529982,0.00013821,2]
[404258164,1770010573834,501.08973292,0.00013699,2]
[404258165,1770010574569,500.0,0.00013273,2]
[404258166,1770010574616,1000.0,0.00013821,2]
[404258167,1770010575022,500.0,0.00013273,2]
[404258168,1770010575055,1000.0,0.00013821,2]
[404258169,1770010575253,500.0,0.00013273,2]
[404258170,1770010575287,502.42771023,0.00013273,2]
[404258171,1770010575318,216.49958707,0.00013821,2]
[404258172,1770010627356,506.66818462,0.00013273,2]
[404258173,1770010627451,501.83872597,0.00013699,2]
[404258174,1770010627727,501.42157305,0.00013699,2]
[404258175,1770010628249,500.54048415,0.00013699,2]
[404258176,1770010631645,500.0,0.00013699,2]
[404258177,1770010632376,500.0,0.00013273,2]
[404258178,1770010632418,1000.0,0.00013821,2]
[404258179,1770010634286,502.37098873,0.00013699,2]
[404258180,1770010635115,500.35669441,0.00013699,2]
[404258181,1770010635498,501.7236834,0.00013699,2]
[404258182,1770010635766,501.71513047,0.00013699,2]
[404258183,1770010638695,504.37145005,0.00013699,2]
[404258184,1770010640043,501.10016724,0.00013699,2]
[404258185,1770010640467,500.75464569,0.00013699,2]
[404258186,1770010641125,502.08741466,0.00013699,2]
[404258187,1770010641658,500.0,0.00013273,2]
[404258188,1770010641720,1000.0,0.00013821,2]
[404258189,1770010642444,500.76126937,0.00013699,2]
[404258190,1770010642500,300.0,0.00013673,2]
[404258191,1770010685097,501.6567225,0.00013699,2]
[404258192,1770010686183,122.23163891,0.00013699,2]
[404258193,1770010686208,119.08770653,0.00013699,2]
[404258194,1770010747845,589.67619271,0.00013699,2]
[404258195,1770010748382,502.57899091,0.00013699,2]
[404258196,1770010748758,500.5953155,0.00013699,2]
[404258197,1770010803362,500.43497571,0.00013699,2]
[404258198,1770010804813,500.98472632,0.00013699,2]
[404258199,1770010804958,500.0,0.00013273,2]
[404258200,1770010805016,1000.0,0.00013821,2]
[404258201,1770010806927,500.75141296,0.00013699,2]
[404258203,1770010866307,502.61384456,0.00013699,2]
[404258205,1770010979287,1887.14,0.0003,120]
[404258206,1770011150101,-1428.89781452,0.00024953,2]
[404258208,1770011228098,-919.11334311,0.00024703,2]
[404258209,1770011228123,-3571.10218548,0.00024953,2]
[404258210,1770011228145,-150.046946,0.00024953,2]
[404258211,1770011228166,-176.0,0.00025397,14]
[404258212,1770011228189,-300.0,0.00026574,2]
[404258213,1770011228211,-1200.0,0.00026847,2]
[404258214,1770011228231,-300.0,0.00026848,2]
[404258215,1770011228253,-150.0,0.0002725,30]
[404258216,1770011228274,-420.0,0.00028742,2]
[404258217,1770011228295,-1082.0,0.00029158,2]
[404258218,1770011228316,-150.0,0.00030169,30]
[404258219,1770011228339,-475.0,0.00031087,2]
[404258220,1770011228360,-165.545,0.00031408,29]
[404258221,1770011228380,-150.0,0.00033089,30]
[404258222,1770011228401,-150.0,0.00036009,30]
[404258223,1770011228435,-623.0,0.00038362,20]
[404258224,1770011228457,-150.0,0.00038928,30]
[404258225,1770011228480,-150.0,0.00041848,30]
[404258226,1770011228501,-246.07053688,0.0004362,31]
[404258227,1770011228521,-274.72920893,0.0004362,31]
[404258228,1770011228542,-500.0,0.0004362,31]
[404258229,1770011228565,-500.0,0.0004362,7]
[404258230,1770011228589,-314.99541932,0.0004362,31]
[404258231,1770011232457,-157.50714099,0.0004352,2]
[404258232,1770011232478,-185.00458068,0.0004362,31]
[404258233,1770011232500,-355.96784709,0.0004362,31]
[404258235,1770011342901,501.18048027,0.00013273,2]
[404258236,1770011343230,505.71215102,0.00013273,2]
[404258237,1770011344009,502.84463315,0.00013273,2]
[404258238,1770011345142,-5000.0,0.00024953,2]
[404258239,1770011345162,-626.12180841,0.00039999,31]
[404258240,1770011345181,-172.24937581,0.00039999,31]
[404258241,1770011345203,-192.31044625,0.00039999,31]
[404258242,1770011345224,-615.67872345,0.00039999,31]
[404258243,1770011345245,-500.0,0.00039999,7]
[404258244,1770011345267,-500.0,0.00039999,31]
[404258245,1770011345292,-500.0,0.00039999,31]
[404258246,1770011345314,-500.0,0.00039999,7]
[404258247,1770011345333,-500.0,0.00039999,31]
[404258248,1770011345353,-500.0,0.00039999,31]
[404258249,1770011345373,-500.0,0.00039999,31]
[404258250,1770011345394,-500.0,0.00039999,7]
[404258251,1770011345413,-500.0,0.00039999,31]
[404258252,1770011345435,-139.68081514,0.00039999,31]
[404258253,1770011353187,-5000.0,0.00038301,20]
[404258254,1770011353214,-360.31918486,0.00039999,31]
[404258255,1770011353237,-500.0,0.00039999,7]
[404258256,1770011353259,-500.0,0.00039999,31]
[404258257,1770011353280,-500.0,0.00039999,31]
[404258258,1770011353301,-500.0,0.00039999,31]
[404258259,1770011353322,-500.0,0.00039999,31]
[404258260,1770011353343,-500.0,0.00039999,7]
[404258261,1770011353363,-500.0,0.00039999,31]
[404258262,1770011353383,-500.0,0.00039999,31]
[404258263,1770011353408,-500.0,0.00039999,7]
[404258264,1770011353428,-500.0,0.00039999,31]
[404258265,1770011353459,-500.0,0.00039999,31]
[404258266,1770011353501,-500.0,0.00039999,7]
[404258267,1770011353527,-500.0,0.00039999,31]
[404258268,1770011353551,-500.0,0.00039999,31]
[404258269,1770011353577,-500.0,0.00039999,31]
[404258270,1770011353601,-500.0,0.00039999,7]
[404258271,1770011353624,-152.99227757,0.00039999,31]
[404258272,1770011353653,-500.0,0.00039999,7]
[404258273,1770011353677,-500.0,0.00039999,31]
[404258274,1770011353704,-511.4497616,0.00039999,7]
[404258275,1770011353727,-500.0,0.00039999,31]
[404258276,1770011353748,-500.0,0.00039999,31]
[404258277,1770011353772,-500.0,0.00039999,31]
[404258278,1770011353796,-500.0,0.00039999,7]
[404258279,1770011353819,-500.0,0.00039999,31]
[404258280,1770011353843,-500.0,0.00039999,7]
[404258281,1770011353866,-500.0,0.00039999,31]
[404258282,1770011353890,-500.0,0.00039999,31]
[404258283,1770011353917,-500.0,0.00039999,7]
[404258284,1770011353941,-500.0,0.00039999,31]
[404258285,1770011353969,-500.0,0.00039999,31]
[404258286,1770011353996,-500.0,0.00039999,7]
[404258287,1770011354019,-500.0,0.00039999,31]
[404258288,1770011354042,-500.0,0.00039999,31]
[404258289,1770011354064,-500.0,0.00039999,7]
[404258290,1770011354088,-500.0,0.00039999,31]
[404258291,1770011354111,-500.0,0.00039999,31]
[404258292,1770011354134,-500.0,0.00039999,31]
[404258293,1770011354156,-500.0,0.00039999,31]
[404258294,1770011354183,-500.0,0.00039999,31]
[404258295,1770011354212,-500.0,0.00039999,31]
[404258296,1770011354236,-500.0,0.00039999,31]
[404258297,1770011354258,-500.0,0.00039999,31]
[404258298,1770011354280,-500.0,0.00039999,31]
[404258299,1770011354301,-431.90764461,0.00039999,31]
[404258300,1770011354320,-499.99999999,0.00039999,31]
[404258301,1770011354339,-50034.00038646,0.0004,120]
[404258302,1770011354359,-500.0,0.00041096,31]
[404258303,1770011354378,-500.0,0.00041096,31]
[404258304,1770011354396,-500.0,0.00041096,31]
[404258305,1770011354416,-500.0,0.00041096,31]
[404258306,1770011354435,-500.0,0.00041096,31]
[404258307,1770011354461,-500.0,0.00041096,31]
[404258308,1770011354481,-500.0,0.00041096,31]
[404258309,1770011354501,-500.0,0.00041096,31]
[404258310,1770011354584,-500.0,0.00041096,31]
[404258311,1770011354619,-500.0,0.00041096,31]
[404258312,1770011354639,-500.0,0.00041096,31]
[404258313,1770011354660,-500.0,0.00041096,31]
[404258314,1770011354679,-500.0,0.00041096,31]
[404258315,1770011354704,-500.0,0.00041096,31]
[404258316,1770011354723,-500.0,0.00041096,31]
[404258317,1770011354743,-500.0,0.00041096,31]
[404258318,1770011354764,-500.0,0.00041096,31]
[404258319,1770011354783,-500.0,0.00041096,31]
[404258320,1770011354802,-500.0,0.00041096,31]
[404258321,1770011354822,-500.0,0.00041096,31]
[404258322,1770011354841,-500.0,0.00041096,31]
[404258323,1770011354860,-500.0,0.00041096,31]
[404258324,1770011354880,-500.0,0.00041096,31]
[404258325,1770011354903,-500.0,0.00041096,31]
[404258326,1770011354922,-453.00552788,0.00041096,31]
[404258327,1770011354943,-500.0,0.00041096,31]
[404258328,1770011354967,-500.0,0.00041096,31]
[404258329,1770011354986,-500.0,0.00041096,31]
[404258330,1770011355005,-500.0,0.00041096,31]
[404258331,1770011355024,-500.0,0.00041096,31]
[404258332,1770011355043,-500.0,0.00041096,31]
[404258333,1770011355062,-500.0,0.00041096,31]
[404258334,1770011355081,-500.0,0.00041096,31]
[404258335,1770011355100,-500.0,0.00041096,31]
[404258336,1770011355119,-500.0,0.00041096,31]
[404258337,1770011355138,-500.0,0.00041096,31]
[404258338,1770011355157,-500.0,0.00041096,31]
[404258339,1770011355176,-500.0,0.00041096,31]
[404258340,1770011355196,-500.0,0.00041096,31]
[404258341,1770011355222,-250.0,0.00041096,31]
[404258342,1770011355241,-3470.34895273,0.00043609,3]
[404258343,1770011355261,-150.0,0.00043622,120]
[404258344,1770011355281,-740.75809701,0.00043623,7]
[404258345,1770011355301,-6231.80099855,0.00043624,2]
[404258346,1770011355363,-13768.19900145,0.00043624,2]
[404258347,1770011355382,-384.5117464,0.00044941,30]
[404258348,1770011355401,-305.857599,0.00045078,30]
[404258349,1770011355420,-305.857599,0.00045078,30]
[404258350,1770011355439,-305.857599,0.00045078,30]
[404258351,1770011355465,-305.857599,0.00045078,30]
[404258352,1770011355488,-305.857599,0.00045078,30]
[404258353,1770011355508,-305.857599,0.00045078,30]
[404258354,1770011355527,-305.857599,0.00045078,30]
[404258355,1770011355548,-177.0,0.00045622,120]
[404258356,1770011355568,-305.857599,0.000459,30]
[404258357,1770011355589,-305.857599,0.000459,30]
[404258358,1770011355611,-305.857599,0.000459,30]
[404258359,1770011355632,-305.857599,0.000459,30]
[404258360,1770011355653,-305.857599,0.000459,30]
[404258361,1770011355673,-305.857599,0.000459,30]
[404258362,1770011355693,-305.857599,0.000459,30]
[404258363,1770011355725,-305.857599,0.000459,30]
[404258364,1770011355747,-305.857599,0.000459,30]
[404258365,1770011355769,-305.857599,0.000459,30]
[404258366,1770011355790,-305.857599,0.000459,30]
[404258367,1770011355811,-305.857599,0.000459,30]
[404258368,1770011355831,-305.857599,0.000459,30]
[404258369,1770011355852,-618.6417619,0.000459,30]
[404258370,1770011355872,-204.0,0.00047622,120]
[404258371,1770011355894,-231.0,0.00049622,120]
[404258372,1770011355919,-151.0,0.0005,120]
[404258373,1770011355940,-151.0,0.000508,120]
[404258374,1770011355966,-151.0,0.000516,120]
[404258375,1770011355989,-258.0,0.00051622,120]
[404258376,1770011356011,-151.0,0.000525,120]
[404258377,1770011356032,-151.0,0.000533,120]
[404258378,1770011356052,-285.0,0.00053622,120]
[404258379,1770011356072,-151.0,0.000541,120]
[404258380,1770011356091,-3470.34895273,0.00054784,4]
[404258381,1770011356111,-10318.35,0.00054794,120]
[404258382,1770011356130,-500.0,0.00054794,120]
[404258383,1770011356148,-1051.91,0.00054794,120]
[404258384,1770011356168,-500.0,0.00054794,120]
[404258385,1770011356189,-632.52,0.00054794,120]
[404258386,1770011356215,-500.0,0.00054794,120]
[404258387,1770011356235,-500.0,0.00054794,120]
[404258388,1770011356255,-514.27,0.00054794,120]
[404258389,1770011356275,-500.0,0.00054794,120]
[404258390,1770011356295,-151.0,0.000549,120]
[404258391,1770011356316,-1065.0,0.000555,120]
[404258392,1770011356336,-151.0,0.000557,120]
[404258393,1770011356357,-151.0,0.000565,120]
[404258394,1770011356377,-151.0,0.000574,120]
[404258395,1770011356396,-215.0,0.000577,120]
[404258396,1770011356416,-151.0,0.000582,120]
[404258397,1770011356434,-215.0,0.00059,120]
[404258398,1770011356457,-151.0,0.00059,120]
[404258399,1770011356478,-151.0,0.000598,120]
[404258400,1770011356498,-151.0,0.000606,120]
[404258401,1770011356518,-151.0,0.000615,120]
[404258402,1770011356539,-151.0,0.000623,120]
[404258403,1770011356560,-10318.35,0.00063013,120]
[404258404,1770011356580,-500.0,0.00063013,120]
[404258405,1770011356600,-1051.91,0.00063013,120]
[404258406,1770011356620,-500.0,0.00063013,120]